[Event "January 9 Late 2024"]
[Site "https://www.chess.com"]
[Date "2024.01.09"]
[Round "8"]
[White "Play, Gilles"]
[Black "Rohan, Ahuja"]
[Result "0-1"]
[Board "87"]
[TimeControl "180+1"]
[WhiteFideId "45130892"]
[BlackFideId "5090598"]
[WhiteElo "2523"]
[BlackElo "2717"]
[WhiteTeam "FRA"]
[BlackTeam "IND"]
[WhiteClock "0:00:00"]
[BlackClock "0:00:23"]

1. e4 {[%clk 0:03:00]}  e5 {[%clk 0:02:56]} 2. Nf3 {[%clk 0:02:59]}  Nc6 {[%clk 0:02:57]} 3. c3 {[%clk 0:02:58]}  d5 {[%clk 0:02:52]} 4. Qa4 {[%clk 0:02:58]}  f6 {[%clk 0:02:42]} 5. d3 {[%clk 0:02:56]}  Ne7 {[%clk 0:02:41]} 6. Be3 {[%clk 0:02:54]}  Bd7 {[%clk 0:02:36]} 7. Nbd2 {[%clk 0:02:51]}  d4 {[%clk 0:02:30]} 8. cxd4 {[%clk 0:02:50]}  Nxd4 {[%clk 0:02:31]} 9. Qd1 {[%clk 0:02:48]}  c5 {[%clk 0:02:30]} 10. Nc4 {[%clk 0:02:30]}  Nec6 {[%clk 0:02:19]} 11. Nh4 {[%clk 0:02:22]}  Be6 {[%clk 0:02:12]} 12. Be2 {[%clk 0:01:57]}  b5 {[%clk 0:02:04]} 13. Na3 {[%clk 0:01:45]}  Be7 {[%clk 0:01:55]} 14. O-O {[%clk 0:01:31]}  O-O {[%clk 0:01:53]} 15. Bg4 {[%clk 0:01:30]}  Bf7 {[%clk 0:01:54]} 16. Nf5 {[%clk 0:01:27]}  Nxf5 {[%clk 0:01:38]} 17. Bxf5 {[%clk 0:01:27]}  a6 {[%clk 0:01:39]} 18. Rc1 {[%clk 0:01:23]}  Nd4 {[%clk 0:01:32]} 19. Bg4 {[%clk 0:01:15]}  Bxa2 {[%clk 0:01:30]} 20. f4 {[%clk 0:01:13]}  Bb3 {[%clk 0:01:22]} 21. Qe1 {[%clk 0:01:08]}  exf4 {[%clk 0:01:22]} 22. Bxf4 {[%clk 0:01:05]}  Kh8 {[%clk 0:01:16]} 23. Qg3 {[%clk 0:00:55]}  Be6 {[%clk 0:01:11]} 24. Rce1 {[%clk 0:00:43]}  Qd7 {[%clk 0:01:07]} 25. Bh5 {[%clk 0:00:39]}  Rg8 {[%clk 0:00:57]} 26. Bg6 {[%clk 0:00:37]}  Rgd8 {[%clk 0:00:52]} 27. Qh4 {[%clk 0:00:35]}  Bg8 {[%clk 0:00:50]} 28. Re3 {[%clk 0:00:30]}  Ne6 {[%clk 0:00:47]} 29. Rh3 {[%clk 0:00:17]}  Ng5 {[%clk 0:00:47]} 30. Bxg5 {[%clk 0:00:07]}  fxg5 {[%clk 0:00:48]} 31. Qh5 {[%clk 0:00:05]}  h6 {[%clk 0:00:46]} 32. Bf5 {[%clk 0:00:03]}  Qd4+ {[%clk 0:00:31]} 33. Kh1 {[%clk 0:00:03]}  c4 {[%clk 0:00:32]} 34. Qg6 {[%clk 0:00:02]}  Rd6 {[%clk 0:00:32]} 35. Qh5 {[%clk 0:00:01]}  cxd3 {[%clk 0:00:28]} 36. Nb1 {[%clk 0:00:00]}  Qxb2 {[%clk 0:00:23]} 0-1

[Event "January 9 Late 2024"]
[Site "https://www.chess.com"]
[Date "2024.01.09"]
[Round "8"]
[White "Hambleton, Aman"]
[Black "Benedetti, Julio"]
[Result "0-1"]
[Board "88"]
[TimeControl "180+1"]
[WhiteFideId "2606577"]
[BlackFideId "172545"]
[WhiteElo "2699"]
[BlackElo "2516"]
[WhiteTeam "CAN"]
[BlackTeam "ARG"]
[WhiteClock "0:00:01"]
[BlackClock "0:01:12"]

1. d4 {[%clk 0:01:58]}  Nf6 {[%clk 0:02:58]} 2. Bf4 {[%clk 0:01:57]}  c5 {[%clk 0:02:56]} 3. e3 {[%clk 0:01:56]}  Qb6 {[%clk 0:02:55]} 4. Na3 {[%clk 0:01:54]}  d6 {[%clk 0:02:51]} 5. Nc4 {[%clk 0:01:42]}  Qc7 {[%clk 0:02:49]} 6. a4 {[%clk 0:01:38]}  g6 {[%clk 0:02:43]} 7. c3 {[%clk 0:01:38]}  Bg7 {[%clk 0:02:43]} 8. h3 {[%clk 0:01:37]}  O-O {[%clk 0:02:43]} 9. Nf3 {[%clk 0:01:37]}  b6 {[%clk 0:02:41]} 10. Bd3 {[%clk 0:01:27]}  Bb7 {[%clk 0:02:41]} 11. O-O {[%clk 0:01:27]}  Nbd7 {[%clk 0:02:40]} 12. Re1 {[%clk 0:01:25]}  Rfe8 {[%clk 0:02:39]} 13. Bh2 {[%clk 0:01:24]}  Ne4 {[%clk 0:02:35]} 14. Ncd2 {[%clk 0:01:21]}  Nxd2 {[%clk 0:02:31]} 15. Nxd2 {[%clk 0:01:21]}  Nf6 {[%clk 0:02:28]} 16. a5 {[%clk 0:01:05]}  bxa5 {[%clk 0:02:12]} 17. Qa4 {[%clk 0:01:00]}  Bc6 {[%clk 0:02:11]} 18. Qxa5 {[%clk 0:01:00]}  Qb7 {[%clk 0:02:11]} 19. Ba6 {[%clk 0:00:33]}  Qxb2 {[%clk 0:02:11]} 20. Reb1 {[%clk 0:00:32]}  Qxd2 {[%clk 0:02:10]} 21. Ra2 {[%clk 0:00:32]}  Rab8 {[%clk 0:01:36]} 22. Rxd2 {[%clk 0:00:02]}  Rxb1+ {[%clk 0:01:35]} 23. Bf1 {[%clk 0:00:02]}  Bb5 {[%clk 0:01:32]} 24. Qxb5 {[%clk 0:00:02]}  Rxb5 {[%clk 0:01:31]} 25. Bxb5 {[%clk 0:00:03]}  Rb8 {[%clk 0:01:27]} 26. Bd3 {[%clk 0:00:02]}  c4 {[%clk 0:01:19]} 27. Bc2 {[%clk 0:00:02]}  Rb2 {[%clk 0:01:14]} 28. f3 {[%clk 0:00:01]}  a5 {[%clk 0:01:14]} 29. Kf2 {[%clk 0:00:01]}  a4 {[%clk 0:01:14]} 30. Ke2 {[%clk 0:00:02]}  a3 {[%clk 0:01:12]} 31. Bd1 {[%clk 0:00:01]} 0-1

[Event "January 9 Late 2024"]
[Site "https://www.chess.com"]
[Date "2024.01.10"]
[Round "8"]
[White "Baziuk, Vladyslav"]
[Black "Saha, Ananda"]
[Result "1-0"]
[Board "89"]
[TimeControl "180+1"]
[WhiteFideId "34107940"]
[BlackFideId "2619644"]
[WhiteElo "2667"]
[BlackElo "2506"]
[WhiteTeam "UKR"]
[BlackTeam "CAN"]
[WhiteClock "0:00:15"]
[BlackClock "0:00:03"]

1. e4 {[%clk 0:03:00]}  e6 {[%clk 0:03:00]} 2. d4 {[%clk 0:03:00]}  d5 {[%clk 0:03:00]} 3. e5 {[%clk 0:03:00]}  c5 {[%clk 0:03:00]} 4. c3 {[%clk 0:03:00]}  Nc6 {[%clk 0:03:01]} 5. Nf3 {[%clk 0:03:01]}  Nge7 {[%clk 0:03:01]} 6. Na3 {[%clk 0:02:56]}  cxd4 {[%clk 0:03:00]} 7. cxd4 {[%clk 0:02:56]}  Nf5 {[%clk 0:03:01]} 8. Nc2 {[%clk 0:02:56]}  Qb6 {[%clk 0:03:01]} 9. Bd3 {[%clk 0:02:43]}  Nb4 {[%clk 0:03:01]} 10. Nxb4 {[%clk 0:02:41]}  Bxb4+ {[%clk 0:03:01]} 11. Bd2 {[%clk 0:02:41]}  Bd7 {[%clk 0:02:49]} 12. Bxf5 {[%clk 0:02:35]}  exf5 {[%clk 0:02:50]} 13. O-O {[%clk 0:02:36]}  Be7 {[%clk 0:02:45]} 14. Bg5 {[%clk 0:02:27]}  Bxg5 {[%clk 0:02:39]} 15. Nxg5 {[%clk 0:02:28]}  h6 {[%clk 0:02:39]} 16. Nf3 {[%clk 0:02:27]}  g5 {[%clk 0:02:37]} 17. Rc1 {[%clk 0:02:25]}  O-O {[%clk 0:02:32]} 18. Qd2 {[%clk 0:02:23]}  Qg6 {[%clk 0:02:22]} 19. Rc5 {[%clk 0:02:20]}  Be6 {[%clk 0:02:13]} 20. Rfc1 {[%clk 0:02:16]}  f4 {[%clk 0:02:13]} 21. Rc7 {[%clk 0:02:07]}  b6 {[%clk 0:02:04]} 22. Ne1 {[%clk 0:02:07]}  Rfc8 {[%clk 0:01:48]} 23. Rxc8+ {[%clk 0:01:56]}  Rxc8 {[%clk 0:01:49]} 24. Rxc8+ {[%clk 0:01:56]}  Bxc8 {[%clk 0:01:50]} 25. Qc2 {[%clk 0:01:56]}  Bf5 {[%clk 0:01:47]} 26. Qc7 {[%clk 0:01:54]}  Be6 {[%clk 0:01:35]} 27. Qc2 {[%clk 0:01:45]}  Bf5 {[%clk 0:01:30]} 28. Qd1 {[%clk 0:01:42]}  g4 {[%clk 0:01:18]} 29. f3 {[%clk 0:01:14]}  g3 {[%clk 0:01:17]} 30. h3 {[%clk 0:01:14]}  Qc6 {[%clk 0:01:13]} 31. Qd2 {[%clk 0:01:08]}  Qb5 {[%clk 0:00:51]} 32. Qxf4 {[%clk 0:01:07]}  Qxb2 {[%clk 0:00:51]} 33. Qxg3+ {[%clk 0:01:03]}  Kh7 {[%clk 0:00:50]} 34. Qf4 {[%clk 0:00:57]}  Bg6 {[%clk 0:00:44]} 35. g4 {[%clk 0:00:49]}  Qxa2 {[%clk 0:00:41]} 36. h4 {[%clk 0:00:48]}  h5 {[%clk 0:00:33]} 37. gxh5 {[%clk 0:00:21]}  Bxh5 {[%clk 0:00:34]} 38. Qg5 {[%clk 0:00:21]}  Bg6 {[%clk 0:00:28]} 39. h5 {[%clk 0:00:21]}  Bb1 {[%clk 0:00:19]} 40. Qf6 {[%clk 0:00:21]}  Qe2 {[%clk 0:00:07]} 41. Qxf7+ {[%clk 0:00:19]}  Kh6 {[%clk 0:00:07]} 42. Ng2 {[%clk 0:00:18]}  Qd1+ {[%clk 0:00:04]} 43. Kh2 {[%clk 0:00:18]}  Qxd4 {[%clk 0:00:05]} 44. Qf6+ {[%clk 0:00:16]}  Kh7 {[%clk 0:00:04]} 45. Kg3 {[%clk 0:00:16]}  Qd2 {[%clk 0:00:03]} 46. Nf4 {[%clk 0:00:15]}  Qe1+ {[%clk 0:00:02]} 47. Kg4 {[%clk 0:00:15]}  Qg1+ {[%clk 0:00:03]} 48. Kh4 {[%clk 0:00:15]}  Qh1+ {[%clk 0:00:03]} 49. Nh3 {[%clk 0:00:15]}  Qe1+ {[%clk 0:00:04]} 50. Kg4 {[%clk 0:00:15]}  Qb4+ {[%clk 0:00:04]} 51. f4 {[%clk 0:00:14]}  Qe1 {[%clk 0:00:03]} 52. Ng5+ {[%clk 0:00:15]}  Kg8 {[%clk 0:00:02]} 53. Qf7+ {[%clk 0:00:15]}  Kh8 {[%clk 0:00:03]} 54. Qf8# {[%clk 0:00:15]} 1-0

[Event "January 9 Late 2024"]
[Site "https://www.chess.com"]
[Date "2024.01.09"]
[Round "8"]
[White "Kraiouchkine, Nikita"]
[Black "Nilsen, Tobias Lang"]
[Result "0-1"]
[Board "91"]
[TimeControl "180+1"]
[WhiteFideId "2607140"]
[BlackFideId "1521624"]
[WhiteElo "2624"]
[BlackElo "2466"]
[WhiteTeam "CAN"]
[BlackTeam "NOR"]
[WhiteClock "0:01:27"]
[BlackClock "0:01:36"]

1. e4 {[%clk 0:02:59]}  e6 {[%clk 0:03:00]} 2. d4 {[%clk 0:02:58]}  d5 {[%clk 0:03:01]} 3. e5 {[%clk 0:02:59]}  c5 {[%clk 0:03:01]} 4. c3 {[%clk 0:02:59]}  Qb6 {[%clk 0:03:02]} 5. Nf3 {[%clk 0:02:59]}  Nc6 {[%clk 0:03:02]} 6. a3 {[%clk 0:02:59]}  Nh6 {[%clk 0:03:02]} 7. b4 {[%clk 0:02:59]}  cxd4 {[%clk 0:03:02]} 8. cxd4 {[%clk 0:03:00]}  Nf5 {[%clk 0:03:02]} 9. Bb2 {[%clk 0:03:00]}  Bd7 {[%clk 0:03:02]} 10. g4 {[%clk 0:02:55]}  Nfe7 {[%clk 0:02:59]} 11. Nc3 {[%clk 0:02:52]}  Ng6 {[%clk 0:02:58]} 12. Na4 {[%clk 0:02:49]}  Qd8 {[%clk 0:02:58]} 13. Nc5 {[%clk 0:02:49]}  Bxc5 {[%clk 0:02:58]} 14. bxc5 {[%clk 0:02:48]}  O-O {[%clk 0:02:57]} 15. Qd2 {[%clk 0:02:44]}  f6 {[%clk 0:02:53]} 16. Bd3 {[%clk 0:02:22]}  fxe5 {[%clk 0:02:49]} 17. Nxe5 {[%clk 0:02:23]}  Ncxe5 {[%clk 0:02:46]} 18. dxe5 {[%clk 0:02:23]}  Qh4 {[%clk 0:02:43]} 19. Bxg6 {[%clk 0:02:17]}  hxg6 {[%clk 0:02:43]} 20. Qd4 {[%clk 0:02:02]}  Rf3 {[%clk 0:02:27]} 21. Bc1 {[%clk 0:01:57]}  Raf8 {[%clk 0:02:24]} 22. Be3 {[%clk 0:01:58]}  Bc6 {[%clk 0:02:07]} 23. a4 {[%clk 0:01:56]}  Rxe3+ {[%clk 0:02:03]} 24. Qxe3 {[%clk 0:01:44]}  d4 {[%clk 0:02:04]} 25. Qb3 {[%clk 0:01:45]}  Bd5 {[%clk 0:01:58]} 26. Qg3 {[%clk 0:01:42]}  Qxg3 {[%clk 0:01:58]} 27. hxg3 {[%clk 0:01:42]}  Bxh1 {[%clk 0:01:58]} 28. Ke2 {[%clk 0:01:43]}  Be4 {[%clk 0:01:49]} 29. f4 {[%clk 0:01:39]}  Rd8 {[%clk 0:01:47]} 30. a5 {[%clk 0:01:36]}  a6 {[%clk 0:01:46]} 31. Ra4 {[%clk 0:01:33]}  Bc6 {[%clk 0:01:46]} 32. Rb4 {[%clk 0:01:33]}  Bb5+ {[%clk 0:01:46]} 33. Kd2 {[%clk 0:01:33]}  Rd5 {[%clk 0:01:45]} 34. g5 {[%clk 0:01:27]}  d3 {[%clk 0:01:36]} 0-1

[Event "January 9 Late 2024"]
[Site "https://www.chess.com"]
[Date "2024.01.09"]
[Round "8"]
[White "Janaszak, Dawid"]
[Black "Andrews, Todd"]
[Result "0-1"]
[Board "92"]
[TimeControl "180+1"]
[WhiteFideId "1119206"]
[BlackFideId "2012456"]
[WhiteElo "2623"]
[BlackElo "2454"]
[WhiteTeam "POL"]
[BlackTeam "USA"]
[WhiteClock "0:00:00"]
[BlackClock "0:00:07"]

1. e4 {[%clk 0:03:00]}  e6 {[%clk 0:02:59]} 2. b3 {[%clk 0:02:59]}  d5 {[%clk 0:02:59]} 3. Bb2 {[%clk 0:03:00]}  dxe4 {[%clk 0:03:00]} 4. Nc3 {[%clk 0:03:00]}  Nf6 {[%clk 0:03:01]} 5. Qe2 {[%clk 0:03:01]}  Bb4 {[%clk 0:03:01]} 6. O-O-O {[%clk 0:03:01]}  Qe7 {[%clk 0:03:01]} 7. Kb1 {[%clk 0:03:01]}  a5 {[%clk 0:03:01]} 8. a4 {[%clk 0:03:00]}  O-O {[%clk 0:02:55]} 9. g4 {[%clk 0:03:00]}  Nbd7 {[%clk 0:02:33]} 10. g5 {[%clk 0:02:59]}  Nd5 {[%clk 0:02:33]} 11. Nxe4 {[%clk 0:03:00]}  c6 {[%clk 0:02:15]} 12. h4 {[%clk 0:02:53]}  b5 {[%clk 0:02:14]} 13. h5 {[%clk 0:02:48]}  bxa4 {[%clk 0:02:13]} 14. g6 {[%clk 0:02:48]}  f5 {[%clk 0:02:00]} 15. gxh7+ {[%clk 0:02:40]}  Kxh7 {[%clk 0:01:59]} 16. Nh3 {[%clk 0:02:32]}  fxe4 {[%clk 0:01:51]} 17. Qxe4+ {[%clk 0:02:33]}  Rf5 {[%clk 0:01:51]} 18. Bd3 {[%clk 0:02:29]}  Nc5 {[%clk 0:01:46]} 19. Qg4 {[%clk 0:02:27]}  Nxd3 {[%clk 0:01:44]} 20. Qg6+ {[%clk 0:02:22]}  Kg8 {[%clk 0:01:36]} 21. cxd3 {[%clk 0:02:02]}  a3 {[%clk 0:01:12]} 22. Ba1 {[%clk 0:01:36]}  Qf7 {[%clk 0:01:08]} 23. Qg2 {[%clk 0:01:32]}  e5 {[%clk 0:01:06]} 24. Ng5 {[%clk 0:01:28]}  Nc3+ {[%clk 0:00:59]} 25. Kc2 {[%clk 0:01:24]}  Qd5 {[%clk 0:00:44]} 26. Ne4 {[%clk 0:00:55]}  Nxe4 {[%clk 0:00:29]} 27. dxe4 {[%clk 0:00:49]}  Qc5+ {[%clk 0:00:29]} 28. Kb1 {[%clk 0:00:49]}  Rxf2 {[%clk 0:00:14]} 29. Qg6 {[%clk 0:00:40]}  Be6 {[%clk 0:00:12]} 30. Qxe6+ {[%clk 0:00:34]}  Rf7 {[%clk 0:00:12]} 31. Rdf1 {[%clk 0:00:25]}  a2+ {[%clk 0:00:11]} 32. Kxa2 {[%clk 0:00:23]}  Qc2+ {[%clk 0:00:10]} 33. Bb2 {[%clk 0:00:23]}  a4 {[%clk 0:00:08]} 34. Qxf7+ {[%clk 0:00:13]}  Kh8 {[%clk 0:00:08]} 35. Qxg7+ {[%clk 0:00:07]}  Kxg7 {[%clk 0:00:07]} 36. Rhg1+ {[%clk 0:00:00]}  Kh8 {[%clk 0:00:07]} 0-1

[Event "January 9 Late 2024"]
[Site "https://www.chess.com"]
[Date "2024.01.09"]
[Round "8"]
[White "Blanco Diez, David"]
[Black "Yurovskykh, Oleksandr"]
[Result "0-1"]
[Board "93"]
[TimeControl "180+1"]
[WhiteFideId "32032927"]
[BlackFideId "14134020"]
[WhiteElo "2453"]
[BlackElo "2620"]
[WhiteTeam "ESP"]
[BlackTeam "UKR"]
[WhiteClock "0:00:02"]
[BlackClock "0:00:29"]

1. e4 {[%clk 0:02:16]}  e6 {[%clk 0:02:54]} 2. d3 {[%clk 0:02:12]}  c5 {[%clk 0:02:51]} 3. g3 {[%clk 0:02:09]}  Nc6 {[%clk 0:02:51]} 4. Bg2 {[%clk 0:02:10]}  d6 {[%clk 0:02:51]} 5. f4 {[%clk 0:02:09]}  Nf6 {[%clk 0:02:50]} 6. Nf3 {[%clk 0:02:09]}  Be7 {[%clk 0:02:48]} 7. O-O {[%clk 0:02:09]}  O-O {[%clk 0:02:45]} 8. c3 {[%clk 0:02:09]}  Rb8 {[%clk 0:02:43]} 9. h3 {[%clk 0:01:57]}  b5 {[%clk 0:02:36]} 10. Be3 {[%clk 0:01:52]}  b4 {[%clk 0:02:27]} 11. g4 {[%clk 0:01:49]}  a5 {[%clk 0:02:17]} 12. g5 {[%clk 0:01:49]}  Nd7 {[%clk 0:02:12]} 13. h4 {[%clk 0:01:44]}  Ba6 {[%clk 0:02:11]} 14. c4 {[%clk 0:01:33]}  Nb6 {[%clk 0:01:57]} 15. f5 {[%clk 0:01:20]}  d5 {[%clk 0:01:37]} 16. cxd5 {[%clk 0:00:34]}  exd5 {[%clk 0:01:38]} 17. e5 {[%clk 0:00:34]}  Re8 {[%clk 0:01:17]} 18. Bf4 {[%clk 0:00:23]}  Bf8 {[%clk 0:01:16]} 19. e6 {[%clk 0:00:15]}  Rb7 {[%clk 0:01:16]} 20. exf7+ {[%clk 0:00:15]}  Rxf7 {[%clk 0:01:16]} 21. Bh3 {[%clk 0:00:14]}  c4 {[%clk 0:01:12]} 22. a3 {[%clk 0:00:11]}  cxd3 {[%clk 0:01:02]} 23. axb4 {[%clk 0:00:10]}  Bxb4 {[%clk 0:01:00]} 24. Nfd2 {[%clk 0:00:09]}  Nd4 {[%clk 0:00:56]} 25. Nc3 {[%clk 0:00:07]}  Ne2+ {[%clk 0:00:56]} 26. Kh1 {[%clk 0:00:07]}  Nxc3 {[%clk 0:00:36]} 27. bxc3 {[%clk 0:00:07]}  Bxc3 {[%clk 0:00:37]} 28. Rc1 {[%clk 0:00:05]}  d4 {[%clk 0:00:36]} 29. Nf3 {[%clk 0:00:02]}  d2 {[%clk 0:00:33]} 30. Nxd2 {[%clk 0:00:03]}  Bxf1 {[%clk 0:00:32]} 31. Nxf1 {[%clk 0:00:03]}  Rxf5 {[%clk 0:00:31]} 32. Bxf5 {[%clk 0:00:03]}  Qd5+ {[%clk 0:00:32]} 33. Kh2 {[%clk 0:00:02]}  Qxf5 {[%clk 0:00:33]} 34. Qf3 {[%clk 0:00:03]}  Rf8 {[%clk 0:00:31]} 35. Qc6 {[%clk 0:00:02]}  Qxf4+ {[%clk 0:00:30]} 36. Ng3 {[%clk 0:00:02]}  Qxc1 {[%clk 0:00:29]} 0-1

[Event "January 9 Late 2024"]
[Site "https://www.chess.com"]
[Date "2024.01.09"]
[Round "8"]
[White "Koziol, Kamil"]
[Black "Mokshanov, Alexey"]
[Result "0-1"]
[Board "94"]
[TimeControl "180+1"]
[WhiteFideId "1161555"]
[BlackFideId "24121657"]
[WhiteElo "2458"]
[BlackElo "2605"]
[WhiteTeam "POL"]
[BlackTeam "RUS"]
[WhiteClock "0:00:03"]
[BlackClock "0:00:09"]

1. d4 {[%clk 0:03:00]}  d5 {[%clk 0:03:00]} 2. c4 {[%clk 0:03:00]}  e6 {[%clk 0:03:00]} 3. Nc3 {[%clk 0:03:00]}  Nf6 {[%clk 0:03:00]} 4. Nf3 {[%clk 0:02:57]}  Be7 {[%clk 0:02:56]} 5. g3 {[%clk 0:02:55]}  O-O {[%clk 0:02:55]} 6. Bg2 {[%clk 0:02:54]}  dxc4 {[%clk 0:02:55]} 7. O-O {[%clk 0:02:48]}  Nc6 {[%clk 0:02:53]} 8. Bg5 {[%clk 0:02:13]}  Rb8 {[%clk 0:02:50]} 9. a4 {[%clk 0:02:11]}  Nd5 {[%clk 0:02:44]} 10. Bxe7 {[%clk 0:02:10]}  Qxe7 {[%clk 0:02:44]} 11. e3 {[%clk 0:02:08]}  Na5 {[%clk 0:02:37]} 12. Nd2 {[%clk 0:01:55]}  Nxc3 {[%clk 0:02:25]} 13. bxc3 {[%clk 0:01:55]}  c5 {[%clk 0:02:25]} 14. Qe2 {[%clk 0:01:27]}  b6 {[%clk 0:02:26]} 15. h4 {[%clk 0:01:16]}  Bb7 {[%clk 0:02:02]} 16. e4 {[%clk 0:01:10]}  cxd4 {[%clk 0:01:59]} 17. cxd4 {[%clk 0:01:10]}  c3 {[%clk 0:01:59]} 18. Nf3 {[%clk 0:00:44]}  Rbc8 {[%clk 0:01:59]} 19. Qc2 {[%clk 0:00:38]}  Rfd8 {[%clk 0:01:37]} 20. Rfd1 {[%clk 0:00:36]}  Qb4 {[%clk 0:01:24]} 21. Rab1 {[%clk 0:00:27]}  Qa3 {[%clk 0:01:21]} 22. e5 {[%clk 0:00:18]}  g6 {[%clk 0:01:10]} 23. Ng5 {[%clk 0:00:18]}  Bxg2 {[%clk 0:00:32]} 24. Kxg2 {[%clk 0:00:18]}  Nc6 {[%clk 0:00:32]} 25. Qe4 {[%clk 0:00:08]}  Ne7 {[%clk 0:00:13]} 26. Qf4 {[%clk 0:00:08]}  Nf5 {[%clk 0:00:13]} 27. Ne4 {[%clk 0:00:08]}  c2 {[%clk 0:00:11]} 28. Nf6+ {[%clk 0:00:06]}  Kg7 {[%clk 0:00:10]} 29. h5 {[%clk 0:00:07]}  cxb1=Q {[%clk 0:00:09]} 30. Rxb1 {[%clk 0:00:06]}  Rxd4 {[%clk 0:00:08]} 31. Qg5 {[%clk 0:00:06]}  h6 {[%clk 0:00:08]} 32. Ne8+ {[%clk 0:00:02]}  Rxe8 {[%clk 0:00:08]} 33. Qf6+ {[%clk 0:00:02]}  Kg8 {[%clk 0:00:07]} 34. hxg6 {[%clk 0:00:03]}  Qe7 {[%clk 0:00:07]} 35. gxf7+ {[%clk 0:00:03]}  Qxf7 {[%clk 0:00:07]} 36. Qxf7+ {[%clk 0:00:01]}  Kxf7 {[%clk 0:00:07]} 37. Rh1 {[%clk 0:00:01]}  Kg6 {[%clk 0:00:07]} 38. g4 {[%clk 0:00:02]}  Rxg4+ {[%clk 0:00:06]} 39. Kf3 {[%clk 0:00:03]}  Rg5 {[%clk 0:00:07]} 40. Kf4 {[%clk 0:00:03]}  Rf8 {[%clk 0:00:08]} 41. Rc1 {[%clk 0:00:04]}  Ne7+ {[%clk 0:00:07]} 42. Ke4 {[%clk 0:00:05]}  Nd5 {[%clk 0:00:08]} 43. Rc6 {[%clk 0:00:05]}  Rf4+ {[%clk 0:00:09]} 44. Kd3 {[%clk 0:00:05]}  Rxe5 {[%clk 0:00:09]} 45. Rc8 {[%clk 0:00:05]}  Nb4+ {[%clk 0:00:09]} 46. Kc3 {[%clk 0:00:03]}  Rc5+ {[%clk 0:00:09]} 0-1

[Event "January 9 Late 2024"]
[Site "https://www.chess.com"]
[Date "2024.01.09"]
[Round "8"]
[White "Ozen, Metehan"]
[Black "Banerjee, Supratit"]
[Result "1-0"]
[Board "96"]
[TimeControl "180+1"]
[WhiteFideId "34596054"]
[BlackFideId "2410079"]
[WhiteElo "2426"]
[BlackElo "2582"]
[WhiteTeam "TUR"]
[BlackTeam "SCO"]
[WhiteClock "0:00:11"]
[BlackClock "0:00:49"]

1. e4 {[%clk 0:03:00]}  e6 {[%clk 0:02:59]} 2. d4 {[%clk 0:02:56]}  d5 {[%clk 0:02:59]} 3. Nc3 {[%clk 0:02:49]}  dxe4 {[%clk 0:02:59]} 4. Nxe4 {[%clk 0:02:48]}  Nd7 {[%clk 0:03:00]} 5. Nf3 {[%clk 0:02:47]}  Ngf6 {[%clk 0:03:00]} 6. Bg5 {[%clk 0:02:44]}  c5 {[%clk 0:02:59]} 7. Nxf6+ {[%clk 0:02:41]}  Nxf6 {[%clk 0:02:56]} 8. Bd3 {[%clk 0:02:33]}  cxd4 {[%clk 0:02:54]} 9. Nxd4 {[%clk 0:02:31]}  Bc5 {[%clk 0:02:54]} 10. c3 {[%clk 0:02:27]}  Bxd4 {[%clk 0:02:52]} 11. cxd4 {[%clk 0:02:26]}  O-O {[%clk 0:02:51]} 12. O-O {[%clk 0:02:26]}  h6 {[%clk 0:02:48]} 13. Bh4 {[%clk 0:02:15]}  Kh8 {[%clk 0:02:45]} 14. Bc2 {[%clk 0:02:11]}  g6 {[%clk 0:02:19]} 15. f4 {[%clk 0:01:40]}  Kg7 {[%clk 0:02:10]} 16. Kh1 {[%clk 0:01:40]}  b6 {[%clk 0:02:09]} 17. Qf3 {[%clk 0:01:21]}  Rb8 {[%clk 0:02:08]} 18. d5 {[%clk 0:00:57]}  Qxd5 {[%clk 0:02:03]} 19. Qc3 {[%clk 0:00:56]}  Qd8 {[%clk 0:01:53]} 20. f5 {[%clk 0:00:51]}  exf5 {[%clk 0:01:48]} 21. Rad1 {[%clk 0:00:49]}  Qe7 {[%clk 0:01:47]} 22. Rfe1 {[%clk 0:00:46]}  Be6 {[%clk 0:01:47]} 23. Bb3 {[%clk 0:00:31]}  g5 {[%clk 0:01:40]} 24. Bg3 {[%clk 0:00:27]}  f4 {[%clk 0:01:35]} 25. Bf2 {[%clk 0:00:28]}  Rbc8 {[%clk 0:01:33]} 26. Qe5 {[%clk 0:00:23]}  Rfe8 {[%clk 0:01:31]} 27. Ba4 {[%clk 0:00:19]}  Red8 {[%clk 0:01:29]} 28. Bd4 {[%clk 0:00:20]}  Rd5 {[%clk 0:01:22]} 29. Qxd5 {[%clk 0:00:20]}  Bxd5 {[%clk 0:01:07]} 30. Rxe7 {[%clk 0:00:20]}  Ba8 {[%clk 0:01:06]} 31. Bb3 {[%clk 0:00:18]}  Kg6 {[%clk 0:01:06]} 32. Bxf7+ {[%clk 0:00:17]}  Kg7 {[%clk 0:01:04]} 33. Be6+ {[%clk 0:00:17]}  Kf8 {[%clk 0:01:04]} 34. Bxf6 {[%clk 0:00:16]}  Rb8 {[%clk 0:00:59]} 35. Rdd7 {[%clk 0:00:12]}  Rc8 {[%clk 0:00:54]} 36. Rf7+ {[%clk 0:00:10]}  Kg8 {[%clk 0:00:53]} 37. Rg7+ {[%clk 0:00:10]}  Kh8 {[%clk 0:00:49]} 38. Rg8# {[%clk 0:00:11]} 1-0

[Event "January 9 Late 2024"]
[Site "https://www.chess.com"]
[Date "2024.01.10"]
[Round "8"]
[White "Krzywda, Andrzej"]
[Black "Kandil, Ahmed"]
[Result "1-0"]
[Board "98"]
[TimeControl "180+1"]
[WhiteFideId "1114565"]
[BlackFideId "10628401"]
[WhiteElo "2417"]
[BlackElo "2572"]
[WhiteTeam "POL"]
[BlackTeam "EGY"]
[WhiteClock "0:02:43"]
[BlackClock "0:02:04"]

1. e4 {[%clk 0:03:00]}  e5 {[%clk 0:02:54]} 2. Nf3 {[%clk 0:02:55]}  Nc6 {[%clk 0:02:52]} 3. Bb5 {[%clk 0:02:55]}  a6 {[%clk 0:02:52]} 4. Ba4 {[%clk 0:02:55]}  Nf6 {[%clk 0:02:49]} 5. O-O {[%clk 0:02:55]}  Nxe4 {[%clk 0:02:47]} 6. d4 {[%clk 0:02:55]}  exd4 {[%clk 0:02:48]} 7. Nxd4 {[%clk 0:02:48]}  Nxd4 {[%clk 0:02:40]} 8. Qxd4 {[%clk 0:02:47]}  Nd6 {[%clk 0:02:35]} 9. Re1+ {[%clk 0:02:44]}  Be7 {[%clk 0:02:36]} 10. Qxg7 {[%clk 0:02:43]}  Rf8 {[%clk 0:02:04]} 11. Bh6 {[%clk 0:02:43]} 1-0

[Event "January 9 Late 2024"]
[Site "https://www.chess.com"]
[Date "2024.01.09"]
[Round "8"]
[White "Dourerassou, Jonathan"]
[Black "Peycheva, Gergana"]
[Result "1-0"]
[Board "103"]
[TimeControl "180+1"]
[WhiteFideId "628050"]
[BlackFideId "2916711"]
[WhiteElo "2787"]
[BlackElo "2443"]
[WhiteTeam "FRA"]
[BlackTeam "BUL"]
[WhiteClock "0:02:22"]
[BlackClock "0:01:17"]

1. e4 {[%clk 0:03:00]}  c5 {[%clk 0:02:59]} 2. Nf3 {[%clk 0:02:59]}  Nc6 {[%clk 0:02:59]} 3. Bb5 {[%clk 0:02:59]}  g6 {[%clk 0:02:58]} 4. O-O {[%clk 0:02:59]}  Bg7 {[%clk 0:02:58]} 5. Re1 {[%clk 0:03:00]}  Nf6 {[%clk 0:02:58]} 6. e5 {[%clk 0:03:00]}  Nd5 {[%clk 0:02:58]} 7. Nc3 {[%clk 0:03:00]}  Nc7 {[%clk 0:02:57]} 8. Bxc6 {[%clk 0:03:00]}  dxc6 {[%clk 0:02:57]} 9. Ne4 {[%clk 0:03:01]}  Ne6 {[%clk 0:02:54]} 10. d3 {[%clk 0:03:00]}  O-O {[%clk 0:02:54]} 11. h3 {[%clk 0:03:00]}  b6 {[%clk 0:02:53]} 12. Be3 {[%clk 0:03:00]}  Nd4 {[%clk 0:02:50]} 13. Nxd4 {[%clk 0:03:00]}  cxd4 {[%clk 0:02:41]} 14. Bf4 {[%clk 0:03:01]}  Be6 {[%clk 0:02:37]} 15. Qd2 {[%clk 0:03:00]}  Re8 {[%clk 0:02:31]} 16. Bh6 {[%clk 0:03:00]}  Bh8 {[%clk 0:02:31]} 17. Qf4 {[%clk 0:02:57]}  f6 {[%clk 0:01:53]} 18. exf6 {[%clk 0:02:52]}  exf6 {[%clk 0:01:54]} 19. Nd6 {[%clk 0:02:46]}  Re7 {[%clk 0:01:54]} 20. Qxd4 {[%clk 0:02:40]}  f5 {[%clk 0:01:45]} 21. Qf4 {[%clk 0:02:34]}  Qd7 {[%clk 0:01:34]} 22. Bg5 {[%clk 0:02:30]}  Bxb2 {[%clk 0:01:25]} 23. Rab1 {[%clk 0:02:27]}  Bc3 {[%clk 0:01:26]} 24. Bxe7 {[%clk 0:02:25]}  Bxe1 {[%clk 0:01:26]} 25. Rxe1 {[%clk 0:02:22]}  Qxe7 {[%clk 0:01:17]} 26. Qe5 {[%clk 0:02:22]} 1-0